fUST/lending_fUST_20240107
["ID","MTS","AMOUNT","RATE_DAILY","PERIOD"]
[310456646,1704557385774,300.35905428,0.00027,7]
[310456815,1704557438183,-154.90705577,0.00020998,4]
[310456816,1704557438192,-154.71144423,0.00020998,2]
[310456818,1704557438205,-1833.61119503,0.00020998,2]
[310456820,1704557438214,-19645.0560538,0.00020999,2]
[310456822,1704557438224,-232.36030021,0.00021,2]
[310456824,1704557438233,-7570.49397843,0.00021,2]
[310456826,1704557438243,-792.00597691,0.00021,2]
[310456828,1704557438252,-267.707174,0.00024287,2]
[310456830,1704557438261,-24900.0,0.00025652,2]
[310456832,1704557438271,-150.0,0.00026248,2]
[310456834,1704557438281,-1820.2732084,0.00027,2]
[310456836,1704557438291,-2483.08597309,0.00028023,2]
[310456838,1704557438300,-4467.1,0.00028338,3]
[310456840,1704557438309,-3722.59,0.00028338,3]
[310456842,1704557438318,-2291.27896623,0.00028346,2]
[310456844,1704557438327,-176.40697611,0.00028346,2]
[310456846,1704557438336,-296.41975986,0.00028346,2]
[310456848,1704557438346,-613.44573934,0.00028347,2]
[310456850,1704557438356,-29192.83614532,0.00028348,7]
[310456852,1704557438365,-3388.41467337,0.00028348,2]
[310456854,1704557438374,-762.80188617,0.00028348,2]
[310456856,1704557438383,-200.0,0.00028348,2]
[310456858,1704557438392,-3004.54432201,0.00028348,2]
[310456860,1704557438402,-155.0,0.000285,2]
[310456862,1704557438411,-309.2171181,0.00028904,2]
[310456864,1704557438420,-156.72774072,0.00029399,2]
[310456866,1704557438429,-198.067554,0.00029499,2]
[310456868,1704557438438,-198.067554,0.00029499,2]
[310456870,1704557438449,-1499.77,0.00029499,2]
[310456872,1704557438459,-1499.77,0.00029499,2]
[310456874,1704557438468,-1499.77,0.00029499,2]
[310456876,1704557438477,-1499.77,0.00029499,2]
[310456878,1704557438486,-1499.77,0.00029499,2]
[310456880,1704557438495,-1499.77,0.00029499,2]
[310456882,1704557438505,-1499.77,0.00029499,2]
[310456884,1704557438514,-1499.77,0.00029499,2]
[310456886,1704557438523,-1499.77,0.00029499,2]
[310456887,1704557438531,-1499.77,0.00029499,2]
[310456888,1704557438541,-502.31660412,0.00029499,2]
[310456889,1704557438550,-500.0,0.00029499,2]
[310456890,1704557438560,-222.36552161,0.00029499,2]
[310456891,1704557438569,-276000.0,0.000295,2]
[310456892,1704557438578,-198.067554,0.000295,2]
[310456893,1704557438587,-198.067554,0.000295,2]
[310456894,1704557438596,-725.56,0.00029598,2]
[310456895,1704557438605,-2007.45430288,0.00029698,5]
[310456896,1704557438614,-326.37359106,0.00029699,2]
[310456897,1704557438623,-9088.30029554,0.000297,4]
[310456898,1704557438632,-2000.0,0.000297,2]
[310456899,1704557438641,-163.151197,0.000297,2]
[310456900,1704557438651,-198.067554,0.000297,2]
[310456901,1704557438660,-198.067554,0.000297,2]
[310456902,1704557438669,-2000.0,0.0002971,2]
[310456903,1704557438678,-2000.0,0.0002972,2]
[310456904,1704557438687,-306.0,0.00029726,2]
[310456905,1704557438697,-153.0,0.00029726,2]
[310456906,1704557438706,-153.0,0.00029726,2]
[310456907,1704557438715,-153.0,0.00029726,2]
[310456908,1704557438724,-153.0,0.00029726,2]
[310456909,1704557438734,-307.877926,0.00029726,2]
[310456911,1704557438743,-2000.0,0.0002973,2]
[310456913,1704557438753,-2000.0,0.0002974,2]
[310456915,1704557438762,-2000.0,0.0002975,2]
[310456917,1704557438772,-198.067554,0.0002975,2]
[310456919,1704557438781,-198.067554,0.0002975,2]
[310456921,1704557438791,-2000.0,0.0002976,2]
[310456923,1704557438801,-2000.0,0.0002977,2]
[310456925,1704557438810,-2000.0,0.0002978,2]
[310456927,1704557438820,-2000.0,0.0002979,2]
[310456929,1704557438829,-166.83703235,0.00029798,2]
[310456931,1704557438838,-2706.30963015,0.00029798,2]
[310456933,1704557438848,-154.9732481,0.00029798,2]
[310456935,1704557438858,-155.39948081,0.00029798,2]
[310456937,1704557438867,-298.20847202,0.00029798,2]
[310456939,1704557438876,-576.55686335,0.00029798,2]
[310456942,1704557438886,-8703.74699306,0.00029798,2]
[310456943,1704557438895,-223.83526593,0.00029798,2]
[310456945,1704557438905,-445.46693302,0.00029798,2]
[310456948,1704557438915,-198.067554,0.00029798,2]
[310456949,1704557438925,-198.067554,0.00029798,2]
[310456952,1704557438935,-151.0,0.00029799,2]
[310456953,1704557438945,-268.461908,0.00029799,2]
[310456956,1704557438955,-198.067554,0.00029799,2]
[310456958,1704557438964,-198.067554,0.00029799,2]
[310456959,1704557438974,-500.0,0.00029799,4]
[310456962,1704557438983,-200.01260433,0.00029799,4]
[310456963,1704557438992,-500.0,0.00029799,4]
[310456965,1704557439002,-500.0,0.00029799,4]
[310456967,1704557439011,-496.68379172,0.00029799,4]
[310456969,1704557439020,-201.77003696,0.00029799,4]
[310456971,1704557439029,-230.77565121,0.00029799,4]
[310456973,1704557439039,-500.0,0.00029799,4]
[310456975,1704557439047,-500.0,0.00029799,4]
[310456977,1704557439057,-438.54153087,0.00029799,4]
[310456980,1704557439066,-500.0,0.00029799,4]
[310456981,1704557439075,-500.0,0.00029799,4]
[310456983,1704557439084,-500.0,0.00029799,4]
[310456985,1704557439094,-435.34975044,0.00029799,4]
[310456987,1704557439103,-500.0,0.00029799,4]
[310456989,1704557439112,-500.0,0.00029799,4]
[310456992,1704557439123,-499.99999999,0.00029799,4]
[310456993,1704557439133,-151.0,0.000298,2]
[310456995,1704557439142,-50622.53887189,0.000298,3]
[310456998,1704557439159,-1285.74766368,0.000298,3]
[310465098,1704557587410,2532.6530534,0.00027,7]
[310465232,1704558632334,-154.90705577,0.00024297,2]
[310465234,1704558632344,-154.90705577,0.00024298,4]
[310465236,1704558632354,-926.83629981,0.00024299,2]
[310465238,1704558632366,-1061.48633945,0.00024299,2]
[310465240,1704558632376,-282.29212395,0.000243,2]
[310465243,1704558632385,-8809.60422497,0.0002644,2]
[310465904,1704558643339,-1147.51610004,0.0002644,2]
[310472195,1704559832443,-154.90705577,0.00024307,4]
[310472196,1704559832453,-154.90705577,0.00024308,2]
[310472197,1704559832463,-1988.32263926,0.00024339,2]
[310472198,1704559832473,-400.95884151,0.0002434,2]
[310472199,1704559832483,-24900.0,0.00024592,2]
[310472200,1704559832492,-179.824082,0.00025846,2]
[310472201,1704559832502,-762.80188617,0.0002644,2]
[310472203,1704559832512,-193.66420536,0.0002644,2]
[310472205,1704559832522,-187.5367593,0.0002644,2]
[310472207,1704559832532,-4305.1089276,0.0002644,2]
[310472209,1704559832542,-757.03758915,0.00026458,5]
[310472211,1704559832551,-1936.60539697,0.00027,2]
[310472213,1704559832560,-155.0,0.000283,2]
[310472215,1704559832570,-3102.16,0.0002929,3]
[310472217,1704559832579,-210.37031836,0.00029298,2]
[310472219,1704559832589,-264.48104928,0.00029298,2]
[310472221,1704559832598,-352.45246413,0.00029298,2]
[310472223,1704559832607,-155.18285666,0.00029298,2]
[310472225,1704559832616,-231.10405101,0.00029298,2]
[310472227,1704559832625,-254.91008809,0.00029298,2]
[310472229,1704559832636,-1011.31837321,0.00029298,2]
[310472230,1704559832645,-1660.10396659,0.00029298,2]
[310472231,1704559832655,-762.16,0.00029299,2]
[310472232,1704559832664,-762.16,0.00029299,2]
[310472233,1704559832674,-762.16,0.00029299,2]
[310472234,1704559832683,-762.16,0.00029299,2]
[310472235,1704559832692,-762.16,0.00029299,2]
[310472236,1704559832701,-762.16,0.00029299,2]
[310472237,1704559832711,-762.16,0.00029299,2]
[310472238,1704559832720,-762.16,0.00029299,2]
[310472239,1704559832729,-541.7741412,0.00029299,2]
[310472240,1704559832738,-762.17,0.00029299,2]
[310472241,1704559832747,-4689.50341783,0.000293,2]
[310472783,1704559843500,-1481.22586338,0.0002644,2]
[310482699,1704561046727,-154.90705577,0.00026332,2]
[310482702,1704561046737,-154.90705577,0.00026333,4]
[310482705,1704561046747,-154.90705577,0.00026334,2]
[310482708,1704561046757,-878.50670922,0.00026439,2]
[310488460,1704562231795,-154.90705577,0.00023194,4]
[310488462,1704562231804,-154.90705577,0.00023194,2]
[310488464,1704562231813,-154.90705577,0.00023195,2]
[310488466,1704562231823,-1988.32263926,0.00023196,2]
[310488468,1704562231832,-3472.71353536,0.00023197,2]
[310488470,1704562231841,-24900.0,0.00023205,2]
[310488472,1704562231850,-167.7524111,0.0002346,2]
[310488474,1704562231859,-1283.4325532,0.00023664,2]
[310488476,1704562231868,-380.11694107,0.00024339,2]
[310488478,1704562231877,-216.475746,0.00025259,2]
[310488480,1704562231887,-200.0,0.00025479,2]
[310488482,1704562231896,-308.5030496,0.00026232,2]
[310488484,1704562231905,-762.80188617,0.00026439,2]
[310488486,1704562231915,-1820.2732084,0.00026439,2]
[310488488,1704562231925,-200.0,0.00026439,2]
[310488490,1704562231934,-2077.63950727,0.00026439,2]
[310488492,1704562231944,-2249.67728096,0.00026439,2]
[310488495,1704562231966,-356.44710143,0.0002644,2]
[310488497,1704562231976,-633.24123024,0.00027738,2]
[310488499,1704562231986,-1500.0,0.00028,2]
[310488501,1704562231996,-155.0,0.000281,2]
[310488503,1704562232006,-362.965745,0.00029,2]
[310488505,1704562232015,-362.965745,0.00029,2]
[310488507,1704562232025,-1500.0,0.00029,2]
[310488509,1704562232034,-178.94356899,0.00029026,2]
[310488511,1704562232044,-6325.44,0.00029089,3]
[310488513,1704562232054,-7590.52,0.0002909,3]
[310488515,1704562232064,-525.20504904,0.00029098,2]
[310488517,1704562232075,-161.78040679,0.00029098,2]
[310488519,1704562232085,-152.43,0.00029099,2]
[310488521,1704562232095,-152.43,0.00029099,2]
[310488524,1704562232104,-152.43,0.00029099,2]
[310488526,1704562232115,-152.43,0.00029099,2]
[310488528,1704562232125,-307.28572742,0.00029099,2]
[310488678,1704562238082,-20538.13147015,0.00029099,2]
[310488680,1704562238092,-503.99841911,0.00029099,2]
[310488682,1704562238103,-500.43032125,0.00029099,2]
[310488684,1704562238114,-61373.21032884,0.000291,2]
[310497220,1704563438285,-154.90705577,0.00026532,2]
[310497221,1704563438295,-154.90705577,0.00026533,2]
[310497222,1704563438304,-154.90705577,0.00026533,4]
[310497223,1704563438314,-260.72265961,0.00026534,2]
[310497224,1704563438323,-1988.32263926,0.00026535,2]
[310497225,1704563438332,-230.29533204,0.00026535,2]
[310497226,1704563438342,-900.88579092,0.00026536,2]
[310497227,1704563438352,-154.90705577,0.00026537,2]
[310497228,1704563438361,-1289.91196152,0.00026538,2]
[310497229,1704563438371,-24900.0,0.0002655,2]
[310497230,1704563438381,-253.41129405,0.00027,2]
[310497231,1704563438390,-620.5711465,0.00027899,2]
[310497232,1704563438399,-1500.0,0.00028,2]
[310497233,1704563438408,-155.0,0.000281,2]
[310497234,1704563438418,-537.60248195,0.00028807,2]
[310497235,1704563438427,-272.0,0.00028936,2]
[310497236,1704563438436,-160.0,0.00028936,2]
[310497237,1704563438445,-150.461,0.00028936,2]
[310497238,1704563438455,-506.16784962,0.00028955,2]
[310497239,1704563438465,-6734.72,0.0002899,3]
[310497240,1704563438474,-5612.27,0.0002899,3]
[310497241,1704563438484,-500.43032125,0.00028999,2]
[310497242,1704563438493,-415.8145787,0.00029,2]
[310497243,1704563438503,-178.94356898,0.00029,2]
[310497244,1704563438513,-276000.0,0.00029,2]
[310497245,1704563438523,-1500.0,0.00029,2]
[310497246,1704563438532,-524.55826807,0.00029098,2]
[310497247,1704563438543,-1037.2606644,0.00029098,2]
[310497248,1704563438552,-3635.81957981,0.00029098,2]
[310497249,1704563438561,-7268.29373,0.00029098,2]
[310497250,1704563438570,-237.67865572,0.00029098,2]
[310497251,1704563438580,-309.67484219,0.00029098,2]
[310497252,1704563438591,-870.00751872,0.00029098,2]
[310497253,1704563438600,-288.41399439,0.00029098,2]
[310497254,1704563438609,-223.83971119,0.00029098,2]
[310497255,1704563438619,-669.85099744,0.00029099,2]
[310497256,1704563438628,-6789.38942398,0.00029099,2]
[310497257,1704563438638,-3388.41467337,0.000291,2]
[310497258,1704563438647,-762.80188617,0.000291,2]
[310497259,1704563438656,-660.15007955,0.000291,2]
[310497260,1704563438666,-360.74116376,0.00029199,2]
[310497261,1704563438675,-620.02855732,0.00029294,2]
[310497262,1704563438684,-236.00464652,0.00029398,2]
[310497263,1704563438695,-676.3587277,0.00029398,2]
[310497264,1704563438705,-1865.38592221,0.00029398,2]
[310497265,1704563438715,-155.0,0.0002947,2]
[310497266,1704563438724,-9088.30029554,0.000297,4]
[310497267,1704563438733,-151.0,0.000297,2]
[310497268,1704563438742,-405.236113,0.000297,2]
[310497269,1704563438752,-405.236113,0.000297,2]
[310497270,1704563438761,-178.94356898,0.000297,2]
[310497271,1704563438771,-2000.0,0.000297,2]
[310497272,1704563438782,-2000.0,0.0002971,2]
[310497273,1704563438795,-2000.0,0.0002972,2]
[310497274,1704563438805,-2000.0,0.0002973,2]
[310497275,1704563438814,-151.0,0.0002974,2]
[310497277,1704563438824,-405.236113,0.0002974,2]
[310497279,1704563438833,-405.236113,0.0002974,2]
[310497281,1704563438842,-2000.0,0.0002974,2]
[310497283,1704563438851,-2000.0,0.0002975,2]
[310497285,1704563438860,-2000.0,0.0002976,2]
[310497287,1704563438869,-2000.0,0.0002977,2]
[310497289,1704563438878,-151.0,0.0002978,2]
[310497291,1704563438887,-405.236113,0.0002978,2]
[310497293,1704563438896,-405.236113,0.0002978,2]
[310497295,1704563438905,-3785.040118,0.0002978,2]
[310497296,1704563438914,-469.27046295,0.00029798,2]
[310497298,1704563438923,-405.236113,0.00029799,2]
[310497300,1704563438933,-405.236113,0.00029799,2]
[310497302,1704563438942,-18242.43949346,0.00029799,2]
[310497304,1704563438951,-500.0,0.00029799,4]
[310497306,1704563438960,-500.0,0.00029799,4]
[310497308,1704563438969,-496.68379172,0.00029799,4]
[310497310,1704563438978,-500.0,0.00029799,4]
[310497312,1704563438987,-500.0,0.00029799,4]
[310497314,1704563438998,-500.0,0.00029799,4]
[310497316,1704563439008,-361.20985026,0.00029799,4]
[310497318,1704563439018,-363.12491852,0.00029799,4]
[310497320,1704563439028,-238.46539072,0.00029799,4]
[310497322,1704563439037,-414172.10978768,0.000298,3]
[310497324,1704563439046,-405.236113,0.000298,2]
[310497326,1704563439055,-405.236113,0.000298,2]
[310497328,1704563439064,-496.4931708,0.0002985,5]
[310497330,1704563439073,-153.0,0.00029863,2]
[310497331,1704563439082,-153.0,0.00029863,2]
[310497333,1704563439093,-1646.38727993,0.0002987,8]
[310497335,1704563439102,-309.70578029,0.00029998,2]
[310497337,1704563439112,-178.73157932,0.00029999,2]
[310497339,1704563439121,-257.9141721,0.0003,4]
[310497341,1704563439131,-199.46047708,0.0003,2]
[310497343,1704563439141,-494.32087365,0.0003,4]
[310497345,1704563439150,-155.30837659,0.0003,2]
[310497347,1704563439159,-166.11653216,0.0003,4]
[310497349,1704563439168,-154.97833187,0.0003,4]
[310497351,1704563439177,-643.64265341,0.0003,4]
[310497353,1704563439186,-3426.03615256,0.0003,2]
[310497355,1704563439196,-5000.0,0.0003,2]
[310497357,1704563439204,-5000.0,0.0003,2]
[310497359,1704563439213,-5000.0,0.0003,2]
[310497361,1704563439223,-5000.0,0.0003,2]
[310497363,1704563439232,-5000.0,0.0003,2]
[310497365,1704563439241,-5000.0,0.0003,2]
[310497367,1704563439251,-5000.0,0.0003,2]
[310497369,1704563439260,-5000.0,0.0003,2]
[310497371,1704563439269,-5000.0,0.0003,2]
[310497373,1704563439278,-5000.0,0.0003,2]
[310497375,1704563439288,-5000.0,0.0003,2]
[310497377,1704563439297,-5000.0,0.0003,2]
[310497379,1704563439306,-5000.0,0.0003,2]
[310497381,1704563439316,-5000.0,0.0003,2]
[310497383,1704563439325,-5000.0,0.0003,2]
[310497385,1704563439334,-5000.0,0.0003,2]
[310497387,1704563439344,-5000.0,0.0003,2]
[310497389,1704563439354,-5000.0,0.0003,2]
[310497391,1704563439363,-5000.0,0.0003,2]
[310497393,1704563439372,-5002.99,0.0003,2]
[310497395,1704563439382,-544.6,0.0003,2]
[310497397,1704563439391,-151.0,0.0003,2]
[310497398,1704563439400,-151.0,0.0003,2]
[310497400,1704563439410,-151.0,0.0003,2]
[310497402,1704563439419,-151.0,0.0003,2]
[310497404,1704563439429,-151.0,0.0003,2]
[310497406,1704563439439,-151.0,0.0003,2]
[310497408,1704563439447,-151.0,0.0003,2]
[310497410,1704563439457,-6966.384136,0.0003,4]
[310497412,1704563439466,-243.99091742,0.0003,4]
[310497414,1704563439475,-283.17690576,0.0003,3]
[310497416,1704563439485,-405.236113,0.0003,2]
[310497418,1704563439494,-405.236113,0.0003,2]
[310497420,1704563439503,-405.236113,0.0003,2]
[310497422,1704563439512,-405.236113,0.0003,2]
[310497424,1704563439521,-405.236113,0.0003,2]
[310497425,1704563439531,-405.236113,0.0003,2]
[310497427,1704563439540,-405.236113,0.0003,2]
[310497429,1704563439550,-405.236113,0.0003,2]
[310497431,1704563439560,-405.236113,0.0003,2]
[310497433,1704563439598,-405.23611842,0.0003,2]
[310497435,1704563439612,-1500.0,0.0003,2]
[310497437,1704563439621,-207.0,0.0003,2]
[310497439,1704563439630,-151.0,0.00030137,2]
[310497441,1704563439639,-48562.3766176,0.00030137,2]
[310497458,1704563439658,-153.0,0.00030137,2]
[310497461,1704563439802,-153.0,0.00030137,2]
[310497463,1704563439811,-153.0,0.00030137,2]
[310497465,1704563439820,-153.0,0.00030137,2]
[310497467,1704563439829,-3470.46394471,0.00030257,4]
[310497469,1704563439838,-153.0,0.00030329,2]
[310497471,1704563439849,-153.0,0.00030329,2]
[310497472,1704563439858,-153.0,0.00030329,2]
[310497474,1704563439867,-151.0,0.00030493,2]
[310497476,1704563439876,-150.0,0.00030799,2]
[310497478,1704563439885,-232.3630118,0.00030997,4]
[310497480,1704563439895,-153.63491455,0.00030997,2]
[310497482,1704563439904,-150.53704975,0.00030997,2]
[310497484,1704563439913,-152.46,0.00030997,2]
[310497486,1704563439922,-157.52979972,0.00030998,4]
[310497488,1704563439931,-10192.65115384,0.00030998,2]
[310497490,1704563439941,-309.61298454,0.00030998,4]
[310497492,1704563439950,-206.15331781,0.00030998,4]
[310497494,1704563439959,-59108.4914648,0.00031,4]
[310497496,1704563439969,-183.96156831,0.00031,4]
[310497498,1704563439978,-213.26712396,0.00031,4]
[310497500,1704563439988,-309.59752322,0.00031,4]
[310497502,1704563439997,-500.0,0.00031,2]
[310497504,1704563440006,-500.0,0.00031,2]
[310497506,1704563440015,-500.0,0.00031,2]
[310497508,1704563440025,-500.0,0.00031,2]
[310497510,1704563440035,-500.0,0.00031,2]
[310497512,1704563440044,-300.0,0.00031,15]
[310497514,1704563440053,-1500.0,0.00031,2]
[310497516,1704563440062,-150.90945433,0.00031459,120]
[310497518,1704563440071,-374881.35487394,0.00031781,2]
[310497520,1704563440085,-53027.83441592,0.00031781,2]
[310497522,1704563440097,-1890.17051321,0.00031781,2]
[310497644,1704563441265,-295.431,0.00028936,2]
[310497646,1704563441274,-234.25875891,0.00031781,2]
[310497648,1704563441285,-2992.33355734,0.00031781,2]
[310497650,1704563441296,-771.48037177,0.00031781,2]
[310497654,1704563441319,-2134.4794123,0.00031781,2]
[310497657,1704563441331,-53237.88806224,0.00031781,2]
[310504269,1704563656628,154.84515385,0.000176,2]
[310504428,1704564633638,-154.90705577,0.00026762,4]
[310504430,1704564633648,-1662.85255834,0.00026763,2]
[310504573,1704564638400,-5370.67847949,0.00026763,2]
[310504576,1704564638411,-1000.0,0.00026763,2]
[310504855,1704564641415,-3157.07663081,0.00026763,2]
[310505493,1704564647567,674.90604088,0.000176,2]
[310505878,1704564651457,182.40769,0.000176,2]
[310507485,1704564669060,410.69199868,0.00016438,2]
[310510287,1704565276349,193.66420536,0.00016438,2]
[310510294,1704565344407,187.5367593,0.00016438,2]
[310510300,1704565406918,4305.1089276,0.00016438,2]
[310510398,1704565832373,-154.90705577,0.00020961,2]
[310510400,1704565832385,-2510.26228092,0.00020962,2]
[310510402,1704565832394,-535.53316373,0.00020963,2]
[310510404,1704565832406,-1452.78947553,0.00020963,2]
[310510406,1704565832415,-154.90705577,0.00020963,4]
[310510408,1704565832424,-154.90705577,0.00020964,2]
[310510410,1704565832433,-154.90705577,0.00020964,2]
[310510411,1704565832443,-1936.60539697,0.00021,2]
[310510413,1704565832453,-179.824082,0.00023126,2]
[310510415,1704565832462,-24900.0,0.000234,2]
[310510417,1704565832471,-172.99502236,0.00024563,2]
[310510419,1704565832480,-168.9408627,0.00024663,2]
[310510421,1704565832490,-757.03758915,0.00025918,5]
[310510423,1704565832499,-3058.02,0.0002879,3]
[310510425,1704565832508,-5831.44,0.0002879,3]
[310510427,1704565832517,-4859.53,0.0002879,3]
[310510429,1704565832526,-1660.10396659,0.00028798,2]
[310510431,1704565832535,-469.27046295,0.00028798,2]
[310510433,1704565832544,-1042.57,0.00028799,2]
[310510435,1704565832553,-1042.57,0.00028799,2]
[310510437,1704565832562,-1042.57,0.00028799,2]
[310510439,1704565832571,-1042.57,0.00028799,2]
[310510441,1704565832580,-1042.57,0.00028799,2]
[310510443,1704565832589,-1042.57,0.00028799,2]
[310510445,1704565832598,-151.03,0.00028799,2]
[310510447,1704565832607,-379.24189884,0.00028799,2]
[310510449,1704565832616,-1229.9401395,0.000288,2]
[310511362,1704565846501,-150.0,0.00028661,2]
[310511364,1704565846511,-1497.93936041,0.0002879,3]
[310511366,1704565846524,-740.03473291,0.0002879,3]
[310516061,1704567037456,-154.90705577,0.000263,4]
[310516062,1704567037465,-154.90705577,0.000263,2]
[310516063,1704567037475,-525.41295756,0.00026301,2]
[310516064,1704567037484,-271.72897209,0.00026302,2]
[310516065,1704567037493,-900.88579092,0.00026303,2]
[310516066,1704567037502,-9020.19077636,0.00026313,2]
[310516088,1704567038766,-1134.42116266,0.00026313,2]
[310516090,1704567038778,-5993.73313935,0.00026313,2]
[310516091,1704567038789,-3777.12238031,0.00026313,2]
[310516092,1704567038866,-795.25274607,0.00026313,2]
[310516093,1704567038877,-4179.27979525,0.00026313,2]
[310516094,1704567038886,-150.0,0.00026699,2]
[310516095,1704567038896,-178.94356899,0.00028632,2]
[310516096,1704567038904,-150.0,0.00028661,2]
[310516097,1704567038914,-1367.75564057,0.0002869,3]
[310516166,1704567097628,-154.90705577,0.00025828,4]
[310516167,1704567097656,-5767.98,0.0002869,3]
[310516168,1704567097683,-4806.65,0.0002869,3]
[310516169,1704567097710,-1654.46294423,0.0002869,3]
[310516199,1704567752867,-166.3647662,0.00035616,120]
[310516200,1704567753034,-344.0,0.00038,120]
[310516201,1704567753085,-2999.12199005,0.00038,120]
[310516202,1704567753109,-344.0,0.000384,120]
[310516203,1704567753135,-369.7560199,0.000399,120]
[310516424,1704568238033,-2042.59917293,0.00025367,2]
[310517221,1704568245873,-12375.44011937,0.00025367,2]
[310517224,1704568245882,-154.90705577,0.00025696,4]
[310517226,1704568245892,-900.88579092,0.00025697,2]
[310517228,1704568245901,-154.90705577,0.00025698,2]
[310517230,1704568245910,-154.90705577,0.00025698,2]
[310517232,1704568245919,-308.5030496,0.0002572,2]
[310517234,1704568245928,-239.38963178,0.0002659,2]
[310517235,1704568245937,-24222.32433782,0.00026651,2]
[310522289,1704569023590,3176.75722385,0.00037,120]
[310522342,1704569434115,-154.90705577,0.00024516,2]
[310522344,1704569434126,-159.59308785,0.00024551,2]
[310522346,1704569434136,-200.0,0.00025479,2]
[310522348,1704569434146,-2182.95116919,0.0002665,5]
[310522355,1704569434214,-0.151,0.0002665,5]
[310522429,1704569438291,-154.90705577,0.00024515,4]
[310522431,1704569438301,-514.34914362,0.0002665,5]
[310522433,1704569438311,-1975.63251888,0.00026651,2]
[310522881,1704569443036,-5608.5102294,0.00026651,2]
[310529512,1704570635270,-755.3702299,0.00021374,2]
[310529514,1704570635280,-154.90705577,0.0002455,4]
[310529516,1704570635289,-150.0,0.00024551,2]
[310529518,1704570635298,-222.21904653,0.00025647,2]
[310529522,1704570635324,-2284.74709796,0.00025647,2]
[310529524,1704570635333,-838.87465674,0.00025648,2]
[310529526,1704570635344,-216.475746,0.00026035,2]
[310529528,1704570635353,-1292.5216815,0.00026212,2]
[310529530,1704570635362,-2136.41629471,0.00026649,2]
[310529532,1704570635371,-18193.5329139,0.00026651,2]
[310529534,1704570635380,-762.80188617,0.00026651,2]
[310529535,1704570635389,-1500.0,0.00027,2]
[310529537,1704570635399,-633.24123024,0.00027263,2]
[310529540,1704570635408,-155.0,0.000275,2]
[310529541,1704570635418,-451.8272974,0.00028,2]
[310529543,1704570635427,-1500.0,0.00028,2]
[310529545,1704570635437,-5486.04,0.0002839,3]
[310529547,1704570635446,-9871.9,0.0002839,3]
[310529549,1704570635454,-8226.58,0.0002839,3]
[310529551,1704570635464,-379.24189884,0.00028399,2]
[310529553,1704570635473,-169.14223698,0.000284,2]
[310529823,1704570638320,-32273.92853038,0.000284,2]
[310529836,1704570638429,-260.29428997,0.000284,2]
[310529840,1704570638441,-578.58036677,0.000284,2]
[310530507,1704570644992,-3060.10246811,0.0002839,3]
[310530634,1704570646230,-3795.37753189,0.0002839,3]
[310530636,1704570646240,-18044.86502946,0.000284,2]
[310531295,1704571838608,-900.88579092,0.00025531,2]
[310531296,1704571838618,-154.90705577,0.00025532,4]
[310531297,1704571838637,-757.03758915,0.00025558,5]
[310531298,1704571838650,-150.0,0.000263,2]
[310531299,1704571838660,-1312.7796974,0.00026747,2]
[310531300,1704571838670,-172.55319,0.00027378,2]
[310531301,1704571838680,-155.0,0.00027598,2]
[310531302,1704571838690,-338.43515661,0.00028,2]
[310531604,1704571841510,-6942.56484339,0.00028,2]
[310531606,1704571841520,-153.0,0.00028333,2]
[310531608,1704571841529,-153.0,0.00028333,2]
[310531610,1704571841539,-153.0,0.00028333,2]
[310531612,1704571841549,-153.0,0.00028333,2]
[310531614,1704571841559,-151.42402437,0.00028343,2]
[310531616,1704571841569,-2755.07,0.0002839,3]
[310531618,1704571841579,-5253.73,0.0002839,3]
[310531621,1704571841590,-4378.1,0.0002839,3]
[310531623,1704571841601,-2103.12335997,0.0002839,3]
[310531625,1704571841613,-1545.29664003,0.0002839,3]